bitfinex/quotes_ETHUSD_20250620
["timestamp","ask_amount","ask_price","bid_price","bid_amount"]
[1750437121064,10.10253299,2490.1,2490.0,4.01606425]
[1750437121375,0.0622,2490.1,2489.6,0.0613]
[1750437121557,6.882,2490.0,2489.5,4.01687085]
[1750437121735,10.0,2489.9,2489.8,4.01638685]
[1750437122469,0.828,2490.2,2490.1,4.01590297]
[1750437122669,17.4753441,2490.2,2490.1,4.01590297]
[1750437122970,0.8169,2490.5,2490.4,4.0154192]
[1750437123135,0.59441377,2490.5,2490.4,4.0154192]
[1750437123335,7.29284173,2490.5,2490.4,4.0154192]
[1750437123576,17.51581846,2490.5,2490.4,4.0154192]
[1750437123777,17.47548547,2490.5,2490.4,4.0154192]
[1750437124071,17.47554505,2490.5,2490.4,4.0154192]
[1750437124276,0.59454505,2490.5,2490.4,4.0154192]
[1750437124485,7.47454505,2490.5,2490.4,4.0154192]
[1750437124671,17.5149411,2490.5,2490.4,4.0154192]
[1750437124870,17.47461695,2490.5,2490.4,4.0154192]
[1750437125034,17.47461695,2490.5,2490.1,4.01590297]
[1750437125238,0.59520021,2490.4,2489.9,4.01620806]
[1750437125435,0.0622,2490.2,2489.6,4.07797845]
[1750437125637,16.879,2490.1,2490.0,4.01606425]
[1750437127473,10.0,2490.0,2489.9,4.01608832]
[1750437127687,10.0,2490.0,2489.6,4.8069751]
[1750437127688,7.82197075,2490.6,2489.7,0.55]
[1750437127875,0.0622,2490.4,2490.2,4.01563388]
[1750437128044,0.65718102,2490.4,2490.3,4.01558045]
[1750437128265,0.59498102,2490.4,2490.3,4.01558045]
[1750437128462,0.59498688,2490.4,2490.2,4.01564227]
[1750437128703,7.57373597,2490.3,2490.1,4.01578742]
[1750437128885,0.37186293,2490.2,2490.1,4.01578742]
[1750437129063,7.7276,2490.3,2490.2,4.0157417]
[1750437129393,8.36286476,2490.3,2490.2,4.0157417]
[1750437129599,8.32253177,2490.3,2490.2,4.0157417]
[1750437130001,8.26120358,2490.3,2489.6,0.7903]
[1750437130217,10.8333,2489.8,2488.8,0.0583]
[1750437130366,10.0,2489.6,2489.5,4.01678512]
[1750437130671,10.5949909,2489.6,2489.5,4.01678512]
[1750437130876,10.5949909,2489.6,2489.4,4.01693429]
[1750437131058,10.0,2489.4,2489.3,4.01710084]
[1750437131263,6.875,2489.4,2489.3,4.01710084]
[1750437131793,0.8243,2490.6,2489.6,4.01670951]
[1750437132026,7.4693749,2490.5,2490.3,4.015477]
[1750437132184,0.5953749,2490.4,2490.3,4.015477]
[1750437132380,10.5953749,2490.4,2490.3,4.015477]
[1750437132595,0.59535477,2490.4,2490.3,4.015477]
[1750437132894,10.59536114,2490.4,2490.3,4.015477]
[1750437133197,0.59536394,2490.4,2490.3,4.015477]
[1750437133403,0.37209188,2490.4,2490.3,4.015477]
[1750437133560,16.874,2490.5,2490.4,4.0154192]
[1750437133764,10.0,2490.4,2490.3,4.01548998]
[1750437133964,0.59535328,2490.4,2490.3,4.01548998]
[1750437134602,7.46935328,2490.4,2490.1,4.01582912]
[1750437134785,0.59535328,2490.3,2490.2,4.0157417]
[1750437134974,0.59538486,2490.3,2490.2,4.0157417]
[1750437135172,0.59534253,2490.3,2490.2,4.0157417]
[1750437135578,0.37209488,2490.3,2490.2,4.0157417]
[1750437135795,6.874,2490.4,2490.3,4.01558045]
[1750437136002,7.24602022,2490.4,2490.3,4.01558045]
[1750437136296,7.24601662,2490.4,2490.3,4.01558045]
[1750437136507,6.874,2490.4,2490.3,4.01558045]
[1750437136693,10.0,2490.6,2490.1,0.0583]
[1750437136909,6.872,2490.4,2490.3,4.01558045]
[1750437137306,7.24405334,2490.4,2490.3,4.01558045]
[1750437137523,7.24405085,2490.4,2490.3,4.01558045]
[1750437137827,0.37205085,2490.4,2490.3,4.01558045]
[1750437137990,6.871,2490.4,2490.3,4.82788045]
[1750437138892,6.871,2490.4,2490.3,4.01558045]
[1750437139395,6.871,2490.4,2490.3,4.07388045]
[1750437139886,10.0,2490.6,2490.5,4.01525798]
[1750437140090,17.46437727,2490.6,2490.5,4.01525798]
[1750437140393,7.46436209,2490.6,2490.5,4.01525798]
[1750437140926,7.46435686,2490.6,2490.5,4.01525798]
[1750437141239,0.37211546,2490.6,2490.5,4.01525798]
[1750437141432,0.0622,2490.7,2490.6,4.07339676]
[1750437141598,16.9312,2490.7,2490.6,4.07339676]
[1750437141803,0.0622,2490.7,2490.6,4.89719676]
[1750437142005,6.9302,2490.7,2490.6,4.89719676]
[1750437142299,6.9302,2490.7,2490.6,6.28802138]
[1750437142712,0.0622,2490.7,2490.6,6.28802138]
[1750437143238,0.0622,2490.7,2490.6,6.3281635]
[1750437144115,0.0622,2490.7,2490.6,6.28802138]
[1750437144317,0.0622,2490.7,2490.6,6.32816626]
[1750437144905,0.0622,2490.7,2490.6,6.28802138]
[1750437147246,0.0622,2490.7,2490.6,6.8781633]
[1750437147544,0.0622,2490.7,2490.6,6.83802138]
[1750437148119,0.39266174,2492.8,2492.1,4.81718006]
[1750437148320,0.43299473,2492.8,2492.1,0.8628]
[1750437148520,1.0513664,2492.9,2492.3,4.01235806]
[1750437148725,11.0513664,2492.9,2492.8,4.01155327]
[1750437148951,11.84558361,2492.9,2492.1,4.87536393]
[1750437149125,13.12257139,2492.9,2492.7,4.0117142]
[1750437149324,3.07761303,2492.9,2492.8,4.01155327]
[1750437149525,1.25161303,2492.9,2492.8,4.01155327]
[1750437149834,7.9143664,2492.9,2492.8,4.01155327]
[1750437150545,7.95469939,2492.9,2492.7,4.01160899]
[1750437150856,23.96344521,2492.8,2492.4,4.01212228]
[1750437151056,0.0614,2492.6,2492.5,4.01200979]
[1750437151457,0.04033299,2492.7,2492.6,4.01187515]
[1750437151652,18.688,2492.7,2492.6,4.01187515]
[1750437152379,10.0,2492.6,2492.5,4.01189812]
[1750437152533,8.688,2492.7,2492.5,4.01189812]
[1750437152866,10.0,2492.6,2492.5,4.01189812]
[1750437153174,0.0614,2492.8,2492.5,4.01189812]
[1750437153380,18.686,2492.6,2492.5,4.01189812]
[1750437154256,10.0,2492.5,2492.4,4.01213202]
[1750437154455,10.0,2492.5,2492.3,4.01227883]
[1750437154632,10.0,2492.5,2492.4,4.01219707]
[1750437155148,10.0,2492.5,2492.1,0.8628]
[1750437155383,10.0,2492.5,2492.4,4.01219707]
[1750437156465,10.0,2492.5,2492.3,4.01226592]
[1750437156858,10.0,2492.5,2492.4,4.01219707]
[1750437159247,10.0,2492.5,2492.3,4.01226473]
[1750437159449,10.0,2492.3,2491.9,4.01298202]
[1750437159650,10.0,2492.3,2491.3,4.01396157]
[1750437159651,0.0602,2492.0,2491.4,0.7558]
[1750437159854,10.0,2491.8,2491.7,4.01323936]
[1750437160463,10.0,2491.8,2491.6,4.01339421]
[1750437160970,10.0,2491.8,2491.6,4.01340413]
[1750437160971,10.8673,2491.8,2491.6,4.01340413]
[1750437161172,10.8071,2491.8,2491.6,4.01340413]
[1750437161476,0.04033299,2491.7,2491.5,4.01355023]
[1750437161639,6.855,2491.6,2491.5,4.01355023]
[1750437162039,10.0,2491.5,2491.4,4.01372566]
[1750437162471,10.0,2491.5,2491.3,4.01388614]
[1750437162772,16.855,2491.4,2491.3,4.01388614]
[1750437163373,10.0,2491.4,2491.3,5.69860971]
[1750437163969,10.0,2491.4,2491.3,5.65847161]
[1750437164538,10.0,2491.4,2491.3,4.01388614]
[1750437167349,0.0602,2491.3,2491.2,4.01412973]
[1750437167676,6.95353299,2491.3,2491.2,4.01412973]
[1750437168577,6.95353299,2491.3,2491.1,4.01420308]
[1750437168976,0.0602,2491.2,2491.0,4.01436123]
[1750437169144,16.853,2491.1,2491.0,4.01436123]
[1750437169351,17.67,2491.1,2490.6,4.01509622]
[1750437169591,0.04033299,2491.0,2490.9,4.01451299]
[1750437169760,17.6098,2491.1,2490.9,4.01451299]
[1750437169761,17.6098,2491.1,2491.0,4.01445202]
[1750437170148,17.67,2491.1,2491.0,4.01445202]
[1750437170380,17.67,2491.1,2490.9,4.01453169]
[1750437170883,0.10053299,2491.0,2490.5,0.7552]
[1750437171095,16.852,2490.9,2490.8,4.01469084]
[1750437174588,10.0,2490.8,2490.5,0.7552]
[1750437174787,10.0,2490.6,2490.5,4.01525798]
[1750437175189,10.0,2490.6,2490.0,0.866]
[1750437175495,16.89133299,2490.5,2490.3,4.01551103]
[1750437175800,6.85,2490.4,2490.3,4.01551103]
[1750437176014,10.0,2490.3,2490.2,4.01567055]
[1750437177483,14.81022563,2490.3,2489.8,4.01638609]
[1750437177684,0.0602,2490.0,2489.7,4.01647012]
[1750437177907,10.0,2489.8,2489.4,0.8074]
[1750437178087,10.0,2489.6,2489.5,4.01687085]
[1750437178290,10.0,2489.6,2489.3,4.01714473]
[1750437178492,6.6288616,2489.9,2489.3,4.01714473]
[1750437178493,10.0,2489.4,2489.3,4.01714473]
[1750437178692,6.85,2489.4,2489.3,4.01714473]
[1750437179816,6.85,2489.4,2489.3,4.01719358]
[1750437182428,10.2357,2489.4,2489.0,4.01767778]
[1750437182609,0.0602,2489.2,2488.4,0.7776]
[1750437182813,0.0602,2489.2,2489.0,4.01767778]
[1750437182814,16.89033299,2489.1,2489.0,4.01767778]
[1750437183062,16.85,2489.1,2489.0,4.01767778]
[1750437183371,0.8215,2489.7,2489.3,4.07579358]
[1750437183648,20.46247075,2490.1,2490.0,4.01606425]
[1750437183839,27.31147075,2490.1,2490.0,4.01606425]
[1750437184214,27.37167075,2490.1,2490.0,4.01606425]
[1750437184736,10.8215,2490.1,2490.0,4.01606425]
[1750437184937,6.849,2490.1,2490.0,4.01594249]
[1750437185748,6.849,2490.1,2489.9,4.01617225]
[1750437185749,0.0602,2490.0,2489.9,4.01615234]
[1750437185911,6.88933299,2490.1,2490.0,4.01606425]
[1750437186112,10.8117,2490.3,2490.1,4.01590297]
[1750437186316,6.849,2490.2,2490.1,4.01590297]
[1750437186648,11.813,2490.3,2490.2,4.0157417]
[1750437186950,18.662,2490.3,2490.2,4.0157417]
[1750437188414,10.445,2490.4,2490.1,4.81909658]
[1750437188415,1.813,2490.8,2490.3,4.0746267]
[1750437188616,16.88833299,2490.7,2490.1,0.80319361]
[1750437188847,6.848,2490.7,2490.4,4.01538509]
[1750437189056,6.88833299,2490.7,2490.6,4.01509676]
[1750437189269,6.9096,2490.7,2490.5,4.01518508]
[1750437189435,6.88833299,2490.7,2490.4,4.01539647]
[1750437189638,0.0616,2490.6,2490.4,4.01539647]
[1750437189858,0.04033299,2490.7,2490.6,4.01509676]
[1750437190024,6.847,2490.7,2490.6,4.01509676]
[1750437190755,6.847,2490.7,2490.4,4.0154192]
[1750437190964,6.88733299,2490.7,2490.5,4.01520804]
[1750437191170,6.94893299,2490.7,2490.5,4.01520804]
[1750437191980,6.94893299,2490.7,2490.4,4.01531281]
[1750437192200,6.94893299,2490.7,2490.5,4.0152239]
[1750437192476,6.94893299,2490.7,2490.2,0.0591]
[1750437192477,10.0,2490.6,2490.2,0.0591]
[1750437192654,16.94893299,2490.7,2490.2,4.01563708]
[1750437192655,10.0,2490.4,2490.2,4.01563708]
[1750437192855,16.846,2490.3,2490.2,4.07473708]
[1750437194283,17.0868376,2491.3,2490.5,0.8755]
[1750437194284,0.20980397,2491.3,2490.5,0.8755]
[1750437194453,6.845,2491.2,2491.0,4.01432629]
[1750437194798,0.26252513,2491.4,2491.0,4.01432629]
[1750437194799,16.845,2491.1,2491.0,4.01432629]
[1750437195082,10.0,2491.0,2490.7,4.01482688]
[1750437195242,10.0,2490.8,2490.7,4.01482688]
[1750437199503,10.0,2490.8,2490.7,4.01493556]
[1750437204392,6.842,2491.0,2490.8,0.0591]
[1750437204617,16.842,2491.0,2490.9,4.01461319]
[1750437208829,16.842,2491.0,2490.9,4.07371319]
[1750437208997,16.841,2491.0,2490.9,4.07371319]
[1750437209198,16.841,2491.0,2490.9,4.84891319]
[1750437209429,16.841,2491.0,2490.9,4.01461319]
[1750437212141,6.841,2491.0,2490.9,4.01461319]
[1750437212934,6.841,2491.0,2490.8,4.01470133]
[1750437212935,6.9026,2491.0,2490.8,4.01470133]
[1750437213102,0.04033299,2490.9,2490.8,4.01470133]
[1750437213735,0.89733299,2490.9,2490.3,0.7605]
[1750437213905,10.0616,2490.7,2490.6,4.01501573]
[1750437214106,10.0,2490.7,2490.6,4.01501573]
[1750437216426,10.0,2490.7,2490.6,4.01501573]
[1750437218205,10.0,2490.7,2490.5,4.0152539]
[1750437218536,16.93853299,2490.6,2490.4,4.0153361]
[1750437218737,16.8982,2490.5,2490.4,4.0153361]
[1750437219310,16.838,2490.5,2490.4,4.0154192]
[1750437220438,17.82197075,2490.9,2490.8,4.01477436]
[1750437220621,17.20925773,2490.9,2490.8,4.01477436]
[1750437220942,17.21026157,2490.9,2490.8,4.01477436]
[1750437221347,16.838,2490.9,2490.8,4.89377436]
[1750437221540,16.838,2490.9,2490.8,5.7846415]
[1750437222347,17.21100306,2490.9,2490.8,5.7846415]
[1750437223121,10.37300306,2490.9,2490.8,5.7846415]
[1750437223322,17.21000306,2490.9,2490.8,5.7846415]
[1750437223544,16.837,2490.9,2490.8,5.7263415]
[1750437223750,17.43386107,2490.9,2490.8,4.9056415]
[1750437223942,17.43386118,2490.9,2490.8,4.01477436]
[1750437224259,17.21004052,2490.9,2490.8,4.01477436]
[1750437224857,17.21004052,2490.9,2490.8,4.07307436]
[1750437225232,17.21001024,2490.9,2490.8,4.01477436]
[1750437225427,17.43381682,2490.9,2490.8,4.8969615]
[1750437225633,17.43381819,2490.9,2490.8,4.8969615]
[1750437225831,17.21001024,2490.9,2490.8,4.8969615]
[1750437226156,17.43381594,2490.9,2490.8,4.8969615]
[1750437226538,17.4338161,2490.9,2490.8,4.8969615]
[1750437226754,17.21000944,2490.9,2490.8,4.8969615]
[1750437227434,17.43382932,2490.9,2490.8,4.8969615]
[1750437227835,17.21000944,2490.9,2490.8,4.8969615]
[1750437228036,17.43382971,2490.9,2490.8,4.8969615]
[1750437228358,17.21000944,2490.9,2490.8,4.8969615]
[1750437228746,17.43382463,2490.9,2490.8,4.8969615]
[1750437229572,17.43383414,2490.9,2490.8,4.8969615]
[1750437229961,17.21002134,2490.9,2490.8,4.8969615]
[1750437230157,17.06075688,2490.9,2490.8,4.8969615]
[1750437230361,17.43368763,2490.9,2490.8,4.8969615]
[1750437230573,17.20993075,2490.9,2490.8,4.9552615]
[1750437232464,17.20990238,2490.9,2490.8,4.9552615]
[1750437232778,16.837,2490.9,2490.8,4.9552615]
[1750437233070,17.20991687,2490.9,2490.8,4.9552615]
[1750437233646,17.43365884,2490.9,2490.8,4.9552615]
[1750437233846,17.20991758,2490.9,2490.8,4.9552615]
[1750437234162,17.20991662,2490.9,2490.8,4.9552615]
[1750437234577,17.43368228,2490.9,2490.8,4.01477436]
[1750437234764,17.43369262,2490.9,2490.8,4.01477436]
[1750437235369,17.43368973,2490.9,2490.8,4.01477436]
[1750437235565,16.837,2490.9,2490.8,4.01477436]
[1750437235788,17.20992999,2490.9,2490.8,4.01477436]
[1750437236083,17.43367016,2490.9,2490.8,4.01477436]
[1750437236287,17.20991842,2490.9,2490.8,4.01477436]
[1750437236492,17.4336679,2490.9,2490.8,4.01477436]
[1750437236700,17.43366252,2490.9,2490.8,4.01477436]
[1750437236871,17.20991758,2490.9,2490.8,4.01477436]
[1750437237069,17.43366865,2490.9,2490.8,4.01477436]
[1750437237294,17.20991859,2490.9,2490.8,4.01477436]
[1750437237690,16.837,2490.9,2490.8,4.01477436]
[1750437237993,17.20992445,2490.9,2490.8,4.01477436]
[1750437238170,17.43368137,2490.9,2490.8,4.01477436]
[1750437238492,17.20992586,2490.9,2490.8,4.07307436]
[1750437238680,17.20993127,2490.9,2490.8,4.07307436]
[1750437238884,17.43368184,2490.9,2490.8,4.07307436]
[1750437239194,17.43368984,2490.9,2490.8,4.07307436]
[1750437239400,17.43369218,2490.9,2490.8,4.07307436]
[1750437239565,17.20392615,2490.9,2490.8,4.07307436]
[1750437239895,17.20392615,2490.9,2490.8,4.9610915]
[1750437240590,17.20395114,2490.9,2490.8,4.9610915]
[1750437240791,17.20395114,2490.9,2490.8,4.01477436]
[1750437241008,17.42769802,2490.9,2490.8,4.01477436]
[1750437241221,17.48789802,2490.9,2490.8,4.01477436]
[1750437241520,17.42769231,2490.9,2490.8,4.01477436]
[1750437241907,17.42768812,2490.9,2490.8,4.01477436]
[1750437242105,19.61792775,2490.9,2490.8,4.01477436]
[1750437242307,17.42761036,2490.9,2490.8,4.78857436]
[1750437242512,17.42761036,2490.9,2490.8,4.84687436]
[1750437242690,17.20374892,2490.9,2490.8,5.73305273]
[1750437242891,0.8004,2491.9,2491.0,0.7738]
[1750437243210,4.01210361,2492.5,2491.7,4.07162423]
[1750437243211,0.3727473,2491.8,2491.7,4.07162423]
[1750437243382,6.829,2491.8,2491.7,4.11175056]
[1750437243581,16.829,2491.8,2491.7,4.01332423]
[1750437244200,20.69299027,2491.8,2491.5,4.01363843]
[1750437244410,11.20633008,2491.7,2491.2,4.0140327]
[1750437244609,10.0,2491.5,2491.0,4.01445202]
[1750437244794,16.827,2491.4,2491.3,4.01386442]
[1750437245720,17.19909526,2491.4,2491.3,4.01386442]
[1750437245926,16.827,2491.4,2491.3,4.01386442]
[1750437246128,7.42217746,2491.4,2491.3,4.01396861]
[1750437246315,6.827,2491.4,2491.3,4.01396861]
[1750437246686,7.42217127,2491.4,2491.3,4.01396861]
[1750437247022,7.48237127,2491.4,2491.1,4.01415936]
[1750437247231,10.0,2491.3,2491.2,4.01398423]
[1750437248188,10.0,2491.3,2491.2,4.07228423]
[1750437249390,10.0,2491.3,2491.2,4.01398423]
[1750437250000,6.826,2491.5,2491.2,1.64952426]
[1750437250213,6.826,2491.5,2491.4,4.01380749]
[1750437250987,16.826,2491.5,2491.4,4.01380749]
[1750437251190,16.826,2491.5,2491.4,4.07270749]
[1750437252421,1.803,2492.1,2491.5,0.7878]
[1750437252603,7.41983343,2492.0,2491.9,4.01290075]
[1750437252807,6.825,2492.0,2491.9,4.01290075]
[1750437253036,7.19672257,2492.0,2491.9,4.01290075]
[1750437253426,7.4198497,2492.0,2491.8,4.01309051]
[1750437253732,6.92423299,2492.0,2491.8,4.01309051]
[1750437253941,10.87821849,2492.0,2491.6,4.01341027]
[1750437254147,11.06808983,2491.9,2491.6,4.01333324]
[1750437254308,6.824,2491.8,2491.7,4.01320056]
[1750437254930,11.803,2492.1,2492.0,4.01284109]
[1750437255136,19.22195255,2492.1,2492.0,4.01284109]
[1750437255335,10.59493088,2492.1,2492.0,4.01284109]
[1750437255516,17.41893088,2492.1,2492.0,4.01284109]
[1750437255712,17.19583042,2492.1,2492.0,4.01284109]
[1750437255914,1.803,2492.4,2492.2,4.01251905]
[1750437255915,10.0,2492.3,2492.2,4.01251905]
[1750437256135,17.04609805,2492.3,2492.2,4.01251905]
[1750437256303,17.19435558,2492.3,2492.2,4.01251905]
[1750437256644,0.8213,2492.5,2492.4,4.01219707]
[1750437256853,18.2786803,2492.5,2492.2,4.01242856]
[1750437257018,0.59401526,2492.4,2492.0,4.01274443]
[1750437257209,6.92223299,2492.3,2492.1,4.01260377]
[1750437257402,6.86333299,2492.3,2492.1,4.01260377]
[1750437259457,6.86333299,2492.3,2492.2,4.01251905]
[1750437259663,6.823,2492.3,2492.2,4.01251905]
[1750437260747,6.823,2492.3,2492.1,4.01258617]
[1750437260946,0.0589,2492.2,2492.1,4.01258617]
[1750437261252,6.823,2492.3,2492.2,4.01251905]
[1750437262552,6.8819,2492.3,2492.1,4.01258288]
[1750437262849,0.0589,2492.1,2492.0,4.01277862]
[1750437263153,10.0,2492.0,2491.9,4.01294518]
[1750437263370,10.0589,2492.0,2491.8,4.01304734]
[1750437263521,16.821,2491.9,2491.8,4.01304734]
[1750437264824,10.7508,2491.8,2491.0,0.8221]
[1750437265121,10.0,2491.6,2491.5,4.01364639]
[1750437266574,10.2,2491.6,2491.5,4.01364639]
[1750437268140,0.2,2491.6,2491.5,4.07254639]
[1750437268479,7.019,2491.6,2491.5,5.78548827]
[1750437269176,7.019,2491.6,2491.5,4.90448827]
[1750437270370,7.019,2491.6,2491.5,4.96338827]
[1750437271690,7.019,2491.6,2491.5,5.78971989]
[1750437271900,0.2,2491.6,2491.5,5.74958827]
[1750437272097,7.019,2491.6,2491.5,5.74958827]
[1750437273415,7.019,2491.6,2491.5,4.01364639]
[1750437276311,17.019,2491.6,2491.5,4.01364639]
[1750437276752,10.2,2491.6,2491.5,4.01364639]
[1750437276952,17.018,2491.6,2491.5,4.01364639]
[1750437277594,17.018,2491.6,2491.5,4.07254639]
[1750437277806,17.018,2491.6,2491.5,4.95657827]
[1750437278991,17.018,2491.6,2491.5,4.89767827]
[1750437279192,17.018,2491.6,2491.5,4.95967827]
[1750437279690,10.2,2491.6,2491.5,4.95967827]
[1750437279890,10.2,2491.6,2491.5,6.33681131]
[1750437279891,0.2,2491.6,2491.5,6.33681131]
[1750437280199,0.2,2491.6,2491.5,5.74667827]
[1750437281396,0.2,2491.6,2491.5,4.01364639]
[1750437282159,0.2,2491.6,2491.5,4.07564639]
[1750437282910,0.2,2491.6,2491.5,4.01364639]
[1750437286394,0.2,2491.6,2491.5,4.07564639]
[1750437286608,7.015,2491.6,2491.5,4.07564639]
[1750437286917,7.015,2491.6,2491.5,4.88458827]
[1750437287318,7.015,2491.6,2491.5,4.82258827]
[1750437287627,7.015,2491.6,2491.5,4.01364639]
[1750437287924,7.015,2491.6,2491.5,4.88554639]
[1750437287925,0.2,2491.6,2491.5,4.88554639]
[1750437289623,16.814,2491.7,2491.6,4.01348531]
[1750437290212,16.814,2491.7,2491.6,4.07548531]
[1750437291262,10.0,2491.7,2491.6,4.01348531]
[1750437291439,10.0578,2491.6,2491.5,4.0135457]
[1750437291725,1.0685586,2491.6,2491.5,4.0135457]
[1750437292025,1.4409908,2491.6,2491.5,4.0135457]
[1750437292202,1.0685586,2491.6,2491.5,4.0135457]
[1750437292405,1.0685586,2491.6,2491.3,4.01391233]
[1750437292406,0.0578,2491.5,2491.3,4.01382464]
[1750437292606,16.8708,2491.4,2491.3,4.01381849]
[1750437292782,17.24322842,2491.4,2491.3,4.01381849]
[1750437292996,17.24323142,2491.4,2491.3,4.01381849]
[1750437293210,16.8708,2491.4,2491.3,4.01381849]
[1750437293522,0.0578,2491.3,2491.2,4.01405056]
[1750437294721,6.8708,2491.3,2491.2,4.01405056]
[1750437296325,0.891,2491.2,2491.1,4.01420673]
[1750437296627,0.87353299,2491.2,2491.0,4.0143535]
[1750437296804,0.0578,2491.1,2491.0,4.0143535]
[1750437298749,0.0578,2491.1,2490.6,0.7669]
[1750437298892,0.0578,2490.9,2490.4,0.7517]
[1750437299090,0.09813299,2490.9,2490.8,4.01477436]
[1750437300731,10.0,2491.0,2490.8,4.01464026]
[1750437301027,0.8418,2490.9,2490.8,4.01464026]
[1750437301189,2.584,2491.2,2491.1,4.01429087]
[1750437301391,10.0,2491.1,2490.7,0.062]
[1750437301590,10.0,2490.9,2490.8,4.01464735]
[1750437301786,16.812,2490.9,2490.8,4.01464735]
[1750437302590,0.8107,2490.8,2490.7,4.01493556]
[1750437304621,16.812,2490.9,2490.7,4.01493556]
[1750437304622,16.812,2490.9,2490.8,4.01477436]
[1750437304822,17.012,2490.9,2490.8,4.01477436]
[1750437305948,17.0698,2490.9,2490.8,4.01477436]
[1750437306324,18.85906,2490.9,2490.8,4.01477436]
[1750437307360,0.0578,2490.8,2490.7,4.01493556]
[1750437307561,17.012,2490.9,2490.3,4.78607912]
[1750437307762,0.0578,2490.8,2490.7,4.01479737]
[1750437308067,17.012,2490.9,2490.8,4.01477436]
[1750437308628,0.2,2490.9,2490.8,4.01477436]
[1750437308844,7.011,2490.9,2490.8,4.01477436]
[1750437310328,7.011,2490.9,2490.8,4.82348153]
[1750437310655,7.011,2490.9,2490.8,4.88098153]
[1750437310861,6.811,2490.9,2490.8,4.88098153]
[1750437311445,6.811,2490.9,2490.8,4.82348153]
[1750437311644,6.811,2490.9,2490.8,4.01477436]
[1750437312245,6.811,2490.9,2490.8,4.07227436]
[1750437312762,2.6016,2491.2,2491.0,4.01445202]
[1750437312763,0.8056,2491.2,2491.0,4.01445202]
[1750437312984,16.81,2491.1,2491.0,4.01445202]
[1750437313263,16.81,2491.1,2491.0,4.07195202]
[1750437313465,16.81,2491.1,2491.0,4.01445202]
[1750437314158,16.8684,2491.1,2491.0,4.01445202]
[1750437314679,16.81,2491.1,2491.0,4.01445202]
[1750437315022,16.809,2491.1,2491.0,4.01445202]
[1750437317562,16.808,2491.1,2491.0,4.01445202]
[1750437322580,17.60404523,2491.1,2491.0,4.01445202]
[1750437322777,17.38063925,2491.1,2491.0,4.01445202]
[1750437322985,17.38064162,2491.1,2491.0,4.01445202]
[1750437323183,17.6043415,2491.1,2491.0,4.01445202]
[1750437323484,17.6045771,2491.1,2491.0,4.01445202]
[1750437323858,19.07343412,2491.1,2490.8,4.01476273]
[1750437324058,0.0584,2490.9,2490.8,4.01476273]
[1750437324259,16.806,2490.9,2490.8,4.01476273]
[1750437325059,10.0,2490.8,2490.7,4.01482386]
[1750437325263,6.806,2490.9,2490.8,4.01477436]
[1750437325583,6.806,2490.9,2490.7,4.014871]
[1750437325584,10.0,2490.8,2490.7,4.014871]
[1750437325782,0.8213,2490.8,2490.7,4.014871]
[1750437325973,10.8213,2490.8,2490.7,4.014871]
[1750437326170,0.8213,2490.8,2490.7,4.014871]
[1750437326395,0.2,2491.1,2491.0,4.01445202]
[1750437326574,17.60189135,2491.1,2491.0,4.01445202]
[1750437326797,17.6602761,2491.1,2491.0,4.01445202]
[1750437327149,17.60182979,2491.1,2491.0,4.01445202]
[1750437327345,17.22874932,2491.1,2491.0,4.01445202]
[1750437327572,17.60165629,2491.1,2491.0,4.01445202]
[1750437327782,17.60163865,2491.1,2491.0,4.01445202]
[1750437327973,17.60162107,2491.1,2491.0,4.01445202]
[1750437328169,10.79663091,2491.1,2491.0,4.01445202]
[1750437328391,0.2,2491.1,2491.0,5.72689724]
[1750437328553,7.005,2491.1,2491.0,5.72689724]
[1750437328754,7.005,2491.1,2491.0,5.68675462]
[1750437329189,7.005,2491.1,2491.0,5.72689486]
[1750437329553,7.005,2491.1,2491.0,5.68675462]
[1750437329752,7.005,2491.1,2491.0,5.72689487]
[1750437330188,0.2,2491.1,2491.0,5.72689487]
[1750437330393,7.005,2491.1,2491.0,5.72689487]
[1750437331293,7.005,2491.1,2491.0,5.68675462]
[1750437333592,7.005,2491.1,2491.0,5.7268949]
[1750437333792,0.2,2491.1,2491.0,6.2768949]
[1750437333995,0.2,2491.1,2491.0,15.95545225]
[1750437334185,0.2,2491.1,2491.0,15.91531706]
[1750437334691,0.2,2491.1,2491.0,22.71831706]
[1750437334877,10.0,2491.7,2491.0,22.71831706]
[1750437334878,10.0,2491.7,2491.6,4.78848531]
[1750437335078,10.0,2491.7,2491.6,4.84598531]
[1750437335882,10.0,2491.7,2491.6,4.78848531]
[1750437336564,10.0,2491.7,2491.6,4.84598531]
[1750437341989,1.796,2492.0,2491.9,4.01300212]
[1750437342306,8.595,2492.0,2491.9,4.01300212]
[1750437342718,10.41419709,2492.2,2492.1,4.01268006]
[1750437342945,10.0591,2492.4,2492.2,4.01251905]
[1750437343082,6.798,2492.3,2492.2,4.01251905]
[1750437343281,0.7524,2492.6,2492.5,4.0120361]
[1750437343513,17.98112761,2492.6,2492.5,4.0120361]
[1750437343819,17.98112191,2492.6,2492.5,4.0120361]
[1750437343979,17.92102191,2492.6,2492.5,4.0120361]
[1750437344181,17.6085,2492.6,2492.5,4.0120361]
[1750437344787,10.8115,2492.6,2492.5,4.0120361]
[1750437344986,17.6085,2492.6,2492.5,4.0120361]
[1750437345200,10.8115,2492.6,2492.5,4.0120361]
[1750437345382,17.6085,2492.6,2492.5,4.0120361]
[1750437345818,10.0,2492.5,2492.4,4.01212814]
[1750437346027,0.0591,2492.5,2492.4,4.01212814]
[1750437346517,0.47329709,2492.5,2492.4,4.01212814]
[1750437349607,0.47329709,2492.5,2492.3,4.01229826]
[1750437349807,16.795,2492.4,2491.8,4.90513634]
[1750437349995,0.0591,2492.3,2492.2,4.01241892]
[1750437350390,17.20919709,2492.4,2492.3,4.01235806]
[1750437350593,17.26829709,2492.4,2492.3,4.01235806]
[1750437350790,17.20919709,2492.4,2492.2,4.01245318]
[1750437351034,0.0591,2492.3,2492.2,4.01245318]
[1750437352216,0.0591,2492.2,2491.8,4.84512105]
[1750437352432,0.0591,2492.2,2492.1,4.01268006]
[1750437352618,16.8531,2492.2,2492.1,4.01268006]
[1750437354002,10.0,2492.1,2491.9,4.01300212]
[1750437354354,0.7848,2491.7,2491.6,4.01348531]